[Event "*** Titled Tuesday Blitz"]
[Site "Chess.com"]
[Date "2021.04.06"]
[Round "5"]
[White "swisspower96"]
[Black "noblerone"]
[Result "1-0"]
[WhiteElo "2554"]
[BlackElo "2386"]
[TimeControl "180+1"]
[EndTime "10:57:49 PDT"]
[Termination "swisspower96 won on time"]

1. d4 {[%clk 0:03:00.9]} 1... d5 {[%clk 0:02:59.5]} 2. c4 {[%clk 0:03:01.3]}
2... c6 {[%clk 0:02:59.8]} 3. Nf3 {[%clk 0:03:01.7]} 3... Nf6 {[%clk 0:03:00.2]}
4. Nc3 {[%clk 0:03:02.3]} 4... dxc4 {[%clk 0:03:00.5]} 5. a4 {[%clk 0:03:01.4]}
5... Bf5 {[%clk 0:03:00.3]} 6. Ne5 {[%clk 0:02:59.3]} 6... Nbd7 {[%clk
0:02:57.7]} 7. Nxc4 {[%clk 0:02:59.5]} 7... Qc7 {[%clk 0:02:56]} 8. g3 {[%clk
0:02:57.2]} 8... e5 {[%clk 0:02:55.4]} 9. dxe5 {[%clk 0:02:56.8]} 9... Nxe5
{[%clk 0:02:55.6]} 10. Bf4 {[%clk 0:02:57.1]} 10... Nfd7 {[%clk 0:02:56.1]} 11.
Bg2 {[%clk 0:02:57.4]} 11... f6 {[%clk 0:02:56.4]} 12. O-O {[%clk 0:02:55.7]}
12... Be6 {[%clk 0:02:53.6]} 13. Nxe5 {[%clk 0:02:42.2]} 13... fxe5 {[%clk
0:02:53.5]} 14. Be3 {[%clk 0:02:40.7]} 14... Bc5 {[%clk 0:02:52.9]} 15. Qc1
{[%clk 0:02:40.6]} 15... O-O {[%clk 0:02:31.9]} 16. Ne4 {[%clk 0:02:33.3]} 16...
Bxe3 {[%clk 0:02:07.8]} 17. Qxe3 {[%clk 0:02:34.2]} 17... h6 {[%clk 0:02:04.2]}
18. a5 {[%clk 0:02:33.3]} 18... a6 {[%clk 0:02:01]} 19. b4 {[%clk 0:02:33.4]}
19... Rad8 {[%clk 0:01:58]} 20. Rac1 {[%clk 0:02:31.4]} 20... Nf6 {[%clk
0:01:50.6]} 21. Nc5 {[%clk 0:02:27.2]} 21... Bf7 {[%clk 0:01:13.9]} 22. h3
{[%clk 0:02:11.9]} 22... Kh8 {[%clk 0:01:12.2]} 23. Rfd1 {[%clk 0:02:01.4]}
23... Rfe8 {[%clk 0:01:03.4]} 24. Kh2 {[%clk 0:01:56.9]} 24... Qe7 {[%clk
0:00:56.8]} 25. Re1 {[%clk 0:00:56.9]} 25... Bd5 {[%clk 0:00:47.8]} 26. Nd3
{[%clk 0:00:47.6]} 26... Bxg2 {[%clk 0:00:45.3]} 27. Kxg2 {[%clk 0:00:48.5]}
27... Qe6 {[%clk 0:00:32.9]} 28. Qb6 {[%clk 0:00:40.3]} 28... Qd5+ {[%clk
0:00:20.4]} 29. Kg1 {[%clk 0:00:40.2]} 29... Rd7 {[%clk 0:00:18.7]} 30. Nc5
{[%clk 0:00:39.6]} 30... Rde7 {[%clk 0:00:18.9]} 31. e4 {[%clk 0:00:39.5]} 31...
Qa2 {[%clk 0:00:16.9]} 32. Rcd1 {[%clk 0:00:26.5]} 32... Rf8 {[%clk 0:00:14.3]}
33. Nxb7 {[%clk 0:00:24.8]} 33... Nd7 {[%clk 0:00:09.6]} 34. Qe3 {[%clk
0:00:21.6]} 34... Ref7 {[%clk 0:00:05.9]} 35. Rd2 {[%clk 0:00:21.3]} 35... Qe6
{[%clk 0:00:03.6]} 36. Kg2 {[%clk 0:00:14.9]} 36... Nf6 {[%clk 0:00:02.8]} 37.
Nc5 {[%clk 0:00:13.7]} 37... Qe7 {[%clk 0:00:02.5]} 38. Red1 {[%clk 0:00:10.9]}
38... h5 {[%clk 0:00:01.9]} 39. Qg5 {[%clk 0:00:09.6]} 1-0

[Event "*** Titled Tuesday Blitz"]
[Site "Chess.com"]
[Date "2021.04.06"]
[Round "5"]
[White "ffbp3q"]
[Black "kamilianin235"]
[Result "0-1"]
[WhiteElo "2373"]
[BlackElo "2254"]
[TimeControl "180+1"]
[EndTime "10:57:49 PDT"]
[Termination "kamilianin235 won on time"]

1. d4 {[%clk 0:03:00.9]} 1... d5 {[%clk 0:02:59.3]} 2. c4 {[%clk 0:03:00.6]}
2... dxc4 {[%clk 0:03:00.2]} 3. Nf3 {[%clk 0:02:59.9]} 3... Nf6 {[%clk
0:02:58.6]} 4. e3 {[%clk 0:02:59.8]} 4... e6 {[%clk 0:02:59]} 5. Bxc4 {[%clk
0:02:59.6]} 5... c5 {[%clk 0:02:59.3]} 6. O-O {[%clk 0:02:58.2]} 6... a6 {[%clk
0:02:58.9]} 7. Qe2 {[%clk 0:02:53.7]} 7... b5 {[%clk 0:02:56.3]} 8. Bd3 {[%clk
0:02:52.3]} 8... Nbd7 {[%clk 0:02:53.4]} 9. a4 {[%clk 0:02:47.1]} 9... b4 {[%clk
0:02:46]} 10. Nbd2 {[%clk 0:02:41.8]} 10... Bb7 {[%clk 0:02:43.1]} 11. e4 {[%clk
0:02:41.3]} 11... cxd4 {[%clk 0:02:40.1]} 12. e5 {[%clk 0:02:41]} 12... Nd5
{[%clk 0:02:36.3]} 13. Nc4 {[%clk 0:02:40.9]} 13... Nc5 {[%clk 0:02:28.3]} 14.
Bg5 {[%clk 0:02:22.6]} 14... Qb8 {[%clk 0:02:09.7]} 15. Rfe1 {[%clk 0:01:41.8]}
15... h6 {[%clk 0:02:04.2]} 16. Bd2 {[%clk 0:01:39.1]} 16... Nb3 {[%clk
0:01:58.5]} 17. Rad1 {[%clk 0:01:29.2]} 17... Be7 {[%clk 0:01:57.4]} 18. Bc1
{[%clk 0:01:12.2]} 18... O-O {[%clk 0:01:38.1]} 19. Qe4 {[%clk 0:01:03]} 19...
Nf6 {[%clk 0:01:36.5]} 20. Qh4 {[%clk 0:00:53.1]} 20... Nxc1 {[%clk 0:01:28]}
21. Rxc1 {[%clk 0:00:45.2]} 21... Nd5 {[%clk 0:01:25.7]} 22. Qxd4 {[%clk
0:00:30]} 22... Rd8 {[%clk 0:01:22.6]} 23. Qe4 {[%clk 0:00:18.9]} 23... Nf6
{[%clk 0:01:17.6]} 24. Qe2 {[%clk 0:00:16.8]} 24... Nd5 {[%clk 0:01:13.8]} 25.
Bb1 {[%clk 0:00:15]} 25... Qa7 {[%clk 0:01:08.9]} 26. a5 {[%clk 0:00:13]} 26...
Rac8 {[%clk 0:00:48.7]} 27. Nd6 {[%clk 0:00:12.9]} 27... Rxc1 {[%clk 0:00:43.2]}
28. Rxc1 {[%clk 0:00:13]} 28... Nf4 {[%clk 0:00:40.3]} 29. Qc2 {[%clk
0:00:09.2]} 29... g6 {[%clk 0:00:37.3]} 30. Qc7 {[%clk 0:00:05.5]} 30... Ne2+
{[%clk 0:00:27.3]} 31. Kf1 {[%clk 0:00:04.2]} 31... Nxc1 {[%clk 0:00:25.6]} 32.
Qxe7 {[%clk 0:00:04]} 32... Rf8 {[%clk 0:00:23.9]} 33. Qxb7 {[%clk 0:00:03.5]}
33... Qxb7 {[%clk 0:00:22.4]} 34. Nxb7 {[%clk 0:00:03.7]} 34... Nb3 {[%clk
0:00:22.9]} 35. Nd6 {[%clk 0:00:03]} 35... Nxa5 {[%clk 0:00:21.9]} 36. Bd3
{[%clk 0:00:03.2]} 36... Nc6 {[%clk 0:00:20.9]} 37. Bxa6 {[%clk 0:00:02.4]}
37... Rd8 {[%clk 0:00:21.2]} 38. Bb5 {[%clk 0:00:02]} 38... Nxe5 {[%clk
0:00:21.2]} 39. Nxe5 {[%clk 0:00:02.1]} 39... Rxd6 {[%clk 0:00:21.1]} 40. Be2
{[%clk 0:00:01.7]} 40... Rd2 {[%clk 0:00:19.6]} 0-1

[Event "*** Titled Tuesday Blitz"]
[Site "Chess.com"]
[Date "2021.04.06"]
[Round "5"]
[White "Chigorinetz"]
[Black "rachidhuilda"]
[Result "1-0"]
[WhiteElo "2511"]
[BlackElo "2264"]
[TimeControl "180+1"]
[EndTime "10:57:50 PDT"]
[Termination "Chigorinetz won on time"]

1. e4 {[%clk 0:03:00.9]} 1... d5 {[%clk 0:02:59.1]} 2. Nc3 {[%clk 0:02:59.4]}
2... dxe4 {[%clk 0:02:57.1]} 3. Nxe4 {[%clk 0:02:58.8]} 3... Qd5 {[%clk
0:02:57.2]} 4. Qf3 {[%clk 0:02:57.9]} 4... Nc6 {[%clk 0:02:55.9]} 5. Ne2 {[%clk
0:02:56]} 5... e5 {[%clk 0:02:55]} 6. N2c3 {[%clk 0:02:54.4]} 6... Qe6 {[%clk
0:02:48.1]} 7. Bb5 {[%clk 0:02:52.7]} 7... Bd7 {[%clk 0:02:15.8]} 8. d3 {[%clk
0:02:45.4]} 8... Nf6 {[%clk 0:02:09]} 9. Be3 {[%clk 0:02:39.8]} 9... Nxe4 {[%clk
0:01:36.2]} 10. Nxe4 {[%clk 0:02:36.1]} 10... Be7 {[%clk 0:01:34.4]} 11. Bc4
{[%clk 0:02:22.7]} 11... Qg6 {[%clk 0:01:26.1]} 12. Nc5 {[%clk 0:02:22.7]} 12...
Bxc5 {[%clk 0:01:14.9]} 13. Bxc5 {[%clk 0:02:22.2]} 13... Qf6 {[%clk 0:00:57.3]}
14. Qxf6 {[%clk 0:02:18.9]} 14... gxf6 {[%clk 0:00:57.2]} 15. f4 {[%clk
0:02:17.6]} 15... Be6 {[%clk 0:00:43.1]} 16. Bb5 {[%clk 0:02:15.2]} 16... Kd7
{[%clk 0:00:32.6]} 17. O-O {[%clk 0:02:14.2]} 17... a6 {[%clk 0:00:28.5]} 18.
Ba4 {[%clk 0:02:11.8]} 18... Rhg8 {[%clk 0:00:26.4]} 19. Rae1 {[%clk 0:02:07.7]}
19... b5 {[%clk 0:00:25.2]} 20. Bb3 {[%clk 0:02:05.9]} 20... Rg6 {[%clk
0:00:20.3]} 21. g3 {[%clk 0:02:04.8]} 21... Bxb3 {[%clk 0:00:19.2]} 22. axb3
{[%clk 0:02:04.3]} 22... Rg7 {[%clk 0:00:10.6]} 23. fxe5 {[%clk 0:02:02.8]}
23... fxe5 {[%clk 0:00:10.5]} 24. Rf6 {[%clk 0:02:02.7]} 24... Re8 {[%clk
0:00:08.8]} 25. Ref1 {[%clk 0:02:00]} 25... Nd8 {[%clk 0:00:08.8]} 26. Rxa6
{[%clk 0:01:59]} 26... Ne6 {[%clk 0:00:08.4]} 27. Be3 {[%clk 0:01:54.8]} 27...
h5 {[%clk 0:00:08.6]} 28. Rf5 {[%clk 0:01:49.1]} 28... h4 {[%clk 0:00:07.4]} 29.
Kf2 {[%clk 0:01:45.2]} 29... hxg3+ {[%clk 0:00:07.5]} 30. hxg3 {[%clk
0:01:45.5]} 30... Rh8 {[%clk 0:00:08]} 31. Kg2 {[%clk 0:01:44.8]} 31... Rhg8
{[%clk 0:00:07.5]} 32. Bf2 {[%clk 0:01:43.8]} 32... Nf4+ {[%clk 0:00:04.8]} 33.
Kf3 {[%clk 0:01:40.2]} 33... Ng6 {[%clk 0:00:03.6]} 34. Raf6 {[%clk 0:01:35.1]}
34... Ke7 {[%clk 0:00:02.1]} 35. Bc5+ {[%clk 0:01:34.3]} 35... Ke8 {[%clk
0:00:02.7]} 36. c4 {[%clk 0:01:31.1]} 36... Rh8 {[%clk 0:00:03]} 37. d4 {[%clk
0:01:28.8]} 37... Rh2 {[%clk 0:00:03.4]} 38. dxe5 {[%clk 0:01:25.9]} 38... Rxb2
{[%clk 0:00:03.5]} 39. e6 {[%clk 0:01:24.7]} 39... Rxb3+ {[%clk 0:00:04.1]} 40.
Ke4 {[%clk 0:01:24.4]} 40... fxe6 {[%clk 0:00:04.7]} 41. Rxe6+ {[%clk 0:01:23]}
41... Kd7 {[%clk 0:00:05.2]} 42. Ref6 {[%clk 0:01:16.9]} 42... bxc4 {[%clk
0:00:04.6]} 43. g4 {[%clk 0:01:15.9]} 43... c3 {[%clk 0:00:03.6]} 44. Kd3 {[%clk
0:01:13.6]} 44... c2+ {[%clk 0:00:03.8]} 45. Kxc2 {[%clk 0:01:13.4]} 45... Rg3
{[%clk 0:00:04.5]} 46. g5 {[%clk 0:01:12.5]} 46... Nh4 {[%clk 0:00:04.6]} 47.
Rd5+ {[%clk 0:01:08.8]} 47... Kc8 {[%clk 0:00:04.3]} 48. Rf4 {[%clk 0:01:01.4]}
48... Ng6 {[%clk 0:00:03.6]} 49. Rc4 {[%clk 0:00:54.8]} 49... Ne7 {[%clk
0:00:01.1]} 50. Re5 {[%clk 0:00:51.6]} 50... Ng6 {[%clk 0:00:01.4]} 51. Rf5
{[%clk 0:00:50]} 51... Ne7 {[%clk 0:00:01.4]} 52. Rf8+ {[%clk 0:00:49.7]} 52...
Kb7 {[%clk 0:00:01.6]} 53. Bd4 {[%clk 0:00:45.6]} 53... R7xg5 {[%clk 0:00:01.1]}
54. Rf7 {[%clk 0:00:45.3]} 1-0

[Event "*** Titled Tuesday Blitz"]
[Site "Chess.com"]
[Date "2021.04.06"]
[Round "5"]
[White "MaxLeto"]
[Black "nss13"]
[Result "0-1"]
[WhiteElo "2359"]
[BlackElo "2523"]
[TimeControl "180+1"]
[EndTime "10:57:50 PDT"]
[Termination "nss13 won by checkmate"]

1. e4 {[%clk 0:03:00.9]} 1... c5 {[%clk 0:02:57.4]} 2. Nf3 {[%clk 0:02:59.4]}
2... e6 {[%clk 0:02:54.2]} 3. d4 {[%clk 0:02:57.6]} 3... cxd4 {[%clk 0:02:55.1]}
4. Nxd4 {[%clk 0:02:58]} 4... Nc6 {[%clk 0:02:53.4]} 5. Nb5 {[%clk 0:02:50.8]}
5... d6 {[%clk 0:02:52.3]} 6. Bf4 {[%clk 0:02:38.5]} 6... e5 {[%clk 0:02:36.2]}
7. Be3 {[%clk 0:02:08.8]} 7... Be6 {[%clk 0:02:34.2]} 8. c4 {[%clk 0:02:05.2]}
8... Be7 {[%clk 0:02:32.2]} 9. Be2 {[%clk 0:01:52.7]} 9... a6 {[%clk 0:02:16.9]}
10. N5c3 {[%clk 0:01:51.5]} 10... Bg5 {[%clk 0:02:17.5]} 11. O-O {[%clk
0:01:31.9]} 11... Bxe3 {[%clk 0:02:10.8]} 12. fxe3 {[%clk 0:01:32.8]} 12... Nf6
{[%clk 0:02:11.2]} 13. Qd2 {[%clk 0:01:18.7]} 13... O-O {[%clk 0:01:51.1]} 14.
b3 {[%clk 0:01:18]} 14... Qb6 {[%clk 0:01:47.9]} 15. Kh1 {[%clk 0:01:10.8]}
15... Rad8 {[%clk 0:01:47]} 16. Rxf6 {[%clk 0:01:00.3]} 16... gxf6 {[%clk
0:01:46.9]} 17. Nd5 {[%clk 0:00:59.6]} 17... Bxd5 {[%clk 0:01:46.1]} 18. exd5
{[%clk 0:00:58.8]} 18... Ne7 {[%clk 0:01:45.9]} 19. Nc3 {[%clk 0:00:53]} 19...
f5 {[%clk 0:01:44.4]} 20. Rf1 {[%clk 0:00:53.4]} 20... Kh8 {[%clk 0:01:43.3]}
21. Bd3 {[%clk 0:00:53.1]} 21... e4 {[%clk 0:01:34.1]} 22. Bc2 {[%clk
0:00:52.6]} 22... Rg8 {[%clk 0:01:26.8]} 23. Ne2 {[%clk 0:00:52.4]} 23... Rg5
{[%clk 0:01:20.8]} 24. Nd4 {[%clk 0:00:50.6]} 24... Rdg8 {[%clk 0:01:18.3]} 25.
g3 {[%clk 0:00:48.1]} 25... Qc7 {[%clk 0:00:56.4]} 26. Rf4 {[%clk 0:00:45.6]}
26... Qd7 {[%clk 0:00:54.8]} 27. Qg2 {[%clk 0:00:31.5]} 27... Ng6 {[%clk
0:00:51.4]} 28. Rf2 {[%clk 0:00:23.1]} 28... Ne5 {[%clk 0:00:45]} 29. Qh3 {[%clk
0:00:19.8]} 29... Ng4 {[%clk 0:00:44.8]} 30. Re2 {[%clk 0:00:16.2]} 30... R8g6
{[%clk 0:00:43.2]} 31. Qf1 {[%clk 0:00:13.5]} 31... Rh6 {[%clk 0:00:43.3]} 32.
Qf4 {[%clk 0:00:12.5]} 32... Rgh5 {[%clk 0:00:32]} 33. h4 {[%clk 0:00:12.7]}
33... Ne5 {[%clk 0:00:20.5]} 34. Re1 {[%clk 0:00:05.4]} 34... Rg6 {[%clk
0:00:20.8]} 35. Rf1 {[%clk 0:00:04.4]} 35... Rg4 {[%clk 0:00:20]} 36. Qf2 {[%clk
0:00:04]} 36... Nf3 {[%clk 0:00:15.9]} 37. Nxf3 {[%clk 0:00:03.9]} 37... exf3
{[%clk 0:00:16.8]} 38. Qxf3 {[%clk 0:00:04.5]} 38... Qe7 {[%clk 0:00:13.8]} 39.
Bxf5 {[%clk 0:00:04.3]} 39... Rgxh4+ {[%clk 0:00:14.3]} 40. gxh4 {[%clk
0:00:04.3]} 40... Qxh4+ {[%clk 0:00:15]} 41. Kg1 {[%clk 0:00:03.8]} 41... Qh2#
{[%clk 0:00:15.1]} 0-1

[Event "*** Titled Tuesday Blitz"]
[Site "Chess.com"]
[Date "2021.04.06"]
[Round "5"]
[White "TC2304"]
[Black "Deepweb2020"]
[Result "0-1"]
[WhiteElo "2291"]
[BlackElo "2527"]
[TimeControl "180+1"]
[EndTime "10:57:50 PDT"]
[Termination "Deepweb2020 won by resignation"]

1. d4 {[%clk 0:03:00.9]} 1... Nf6 {[%clk 0:02:55.2]} 2. Bg5 {[%clk 0:03:00.6]}
2... d5 {[%clk 0:02:52.5]} 3. Nd2 {[%clk 0:03:00.1]} 3... c5 {[%clk 0:02:48.4]}
4. e3 {[%clk 0:02:59.9]} 4... e6 {[%clk 0:02:45]} 5. Ngf3 {[%clk 0:02:55]} 5...
Bd6 {[%clk 0:02:43.9]} 6. c3 {[%clk 0:02:53.4]} 6... Nbd7 {[%clk 0:02:43.6]} 7.
Bd3 {[%clk 0:02:52.9]} 7... h6 {[%clk 0:02:41]} 8. Bh4 {[%clk 0:02:52.3]} 8...
Qe7 {[%clk 0:02:39.9]} 9. O-O {[%clk 0:02:52.3]} 9... e5 {[%clk 0:02:37.2]} 10.
dxe5 {[%clk 0:02:51.9]} 10... Nxe5 {[%clk 0:02:37.3]} 11. Nxe5 {[%clk
0:02:52.2]} 11... Qxe5 {[%clk 0:02:37.1]} 12. Bg3 {[%clk 0:02:46]} 12... Qe7
{[%clk 0:02:37.1]} 13. e4 {[%clk 0:02:39.9]} 13... Bxg3 {[%clk 0:02:22.7]} 14.
hxg3 {[%clk 0:02:38.5]} 14... Bg4 {[%clk 0:02:13.9]} 15. Bb5+ {[%clk 0:02:19.7]}
15... Kf8 {[%clk 0:02:07.3]} 16. Qa4 {[%clk 0:02:09.2]} 16... dxe4 {[%clk
0:02:03.5]} 17. Rfe1 {[%clk 0:02:08.9]} 17... g6 {[%clk 0:01:34.3]} 18. Nxe4
{[%clk 0:02:05.7]} 18... Be6 {[%clk 0:01:34.4]} 19. Nxf6 {[%clk 0:01:46.8]}
19... Qxf6 {[%clk 0:01:34.2]} 20. Bd7 {[%clk 0:01:47.3]} 20... Bf5 {[%clk
0:01:14.2]} 21. Rad1 {[%clk 0:01:36.3]} 21... Kg7 {[%clk 0:01:02]} 22. g4 {[%clk
0:01:25.6]} 22... Bxd7 {[%clk 0:00:49.8]} 23. Qxd7 {[%clk 0:01:17.4]} 23... b6
{[%clk 0:00:44.6]} 24. Rd6 {[%clk 0:01:08.8]} 24... Rad8 {[%clk 0:00:34.9]} 25.
Qxd8 {[%clk 0:00:51.1]} 25... Rxd8 {[%clk 0:00:31]} 26. Rxf6 {[%clk 0:00:51.1]}
26... Kxf6 {[%clk 0:00:31.9]} 27. Re2 {[%clk 0:00:51.5]} 27... Rd1+ {[%clk
0:00:31.3]} 28. Kh2 {[%clk 0:00:49.9]} 28... b5 {[%clk 0:00:28.2]} 29. Kg3
{[%clk 0:00:45.3]} 29... Rd3+ {[%clk 0:00:27.1]} 30. f3 {[%clk 0:00:44.8]} 30...
c4 {[%clk 0:00:27.5]} 31. Kf2 {[%clk 0:00:41.1]} 31... a5 {[%clk 0:00:24.5]} 32.
Re3 {[%clk 0:00:41]} 32... Rd2+ {[%clk 0:00:22.2]} 33. Re2 {[%clk 0:00:41]}
33... Rd1 {[%clk 0:00:20.5]} 34. Re1 {[%clk 0:00:36.9]} 34... Rxe1 {[%clk
0:00:18.4]} 35. Kxe1 {[%clk 0:00:37.8]} 35... Ke5 {[%clk 0:00:18.8]} 36. Kf2
{[%clk 0:00:36.9]} 36... f5 {[%clk 0:00:19.4]} 37. gxf5 {[%clk 0:00:34.6]} 37...
Kxf5 {[%clk 0:00:19.7]} 38. Ke3 {[%clk 0:00:33.3]} 38... h5 {[%clk 0:00:18.3]}
39. g3 {[%clk 0:00:32.1]} 39... g5 {[%clk 0:00:18.7]} 40. b3 {[%clk 0:00:20.6]}
40... cxb3 {[%clk 0:00:18.3]} 41. axb3 {[%clk 0:00:20.4]} 41... a4 {[%clk
0:00:19.2]} 42. bxa4 {[%clk 0:00:19]} 42... bxa4 {[%clk 0:00:19.1]} 43. c4
{[%clk 0:00:19.9]} 43... a3 {[%clk 0:00:19.6]} 44. c5 {[%clk 0:00:20.6]} 44...
a2 {[%clk 0:00:20.1]} 45. c6 {[%clk 0:00:20.8]} 45... a1=Q {[%clk 0:00:20.6]}
46. c7 {[%clk 0:00:20.7]} 46... Qc1+ {[%clk 0:00:20.4]} 0-1

[Event "*** Titled Tuesday Blitz"]
[Site "Chess.com"]
[Date "2021.04.06"]
[Round "5"]
[White "Beca95"]
[Black "Skat2704"]
[Result "1-0"]
[WhiteElo "2913"]
[BlackElo "2629"]
[TimeControl "180+1"]
[EndTime "10:57:51 PDT"]
[Termination "Beca95 won by resignation"]

1. d4 {[%clk 0:03:00.9]} 1... d5 {[%clk 0:02:57.3]} 2. c4 {[%clk 0:03:01.1]}
2... e6 {[%clk 0:02:56.3]} 3. Nf3 {[%clk 0:02:59.9]} 3... Nf6 {[%clk 0:02:55.4]}
4. Nc3 {[%clk 0:02:59.9]} 4... Be7 {[%clk 0:02:54.5]} 5. Bf4 {[%clk 0:02:58.5]}
5... O-O {[%clk 0:02:53]} 6. a3 {[%clk 0:02:58.4]} 6... b6 {[%clk 0:02:50.9]} 7.
e3 {[%clk 0:02:46.9]} 7... Bb7 {[%clk 0:02:49.8]} 8. Qc2 {[%clk 0:02:45.6]} 8...
Nbd7 {[%clk 0:02:46.2]} 9. cxd5 {[%clk 0:02:40.8]} 9... exd5 {[%clk 0:02:44.3]}
10. Be2 {[%clk 0:02:40]} 10... c5 {[%clk 0:02:41.2]} 11. dxc5 {[%clk 0:02:33.3]}
11... bxc5 {[%clk 0:02:39.9]} 12. O-O {[%clk 0:02:32.7]} 12... Rc8 {[%clk
0:02:34.5]} 13. Rfd1 {[%clk 0:02:31.7]} 13... Nb6 {[%clk 0:02:31.3]} 14. a4
{[%clk 0:02:31.4]} 14... a5 {[%clk 0:02:26.9]} 15. Ne5 {[%clk 0:02:28]} 15...
Nfd7 {[%clk 0:02:15.7]} 16. Bf3 {[%clk 0:02:23.7]} 16... Nxe5 {[%clk 0:02:09]}
17. Bxe5 {[%clk 0:02:24.6]} 17... Bd6 {[%clk 0:02:05.5]} 18. Bxd6 {[%clk
0:02:13.5]} 18... Qxd6 {[%clk 0:01:57.6]} 19. Qb3 {[%clk 0:01:50.4]} 19... Rfd8
{[%clk 0:01:54.7]} 20. Qb5 {[%clk 0:01:37.2]} 20... c4 {[%clk 0:01:29.4]} 21.
Qxa5 {[%clk 0:01:27.2]} 21... Ra8 {[%clk 0:01:24.8]} 22. Qb5 {[%clk 0:01:19.7]}
22... Ba6 {[%clk 0:01:23.3]} 23. Qa5 {[%clk 0:01:12.4]} 23... Bb7 {[%clk
0:01:05.3]} 24. Qb5 {[%clk 0:01:09.2]} 24... Ba6 {[%clk 0:00:57.1]} 25. Rxd5
{[%clk 0:01:08.6]} 25... Nxd5 {[%clk 0:00:48.7]} 26. Qxd5 {[%clk 0:01:08.4]}
26... Qxd5 {[%clk 0:00:45.4]} 27. Nxd5 {[%clk 0:01:09.3]} 27... Ra7 {[%clk
0:00:40.4]} 28. a5 {[%clk 0:01:07.9]} 28... Rad7 {[%clk 0:00:36]} 29. Nb4 {[%clk
0:01:03.5]} 29... Bb7 {[%clk 0:00:34.1]} 30. Be2 {[%clk 0:00:52.8]} 30... Rd2
{[%clk 0:00:32.3]} 31. Bxc4 {[%clk 0:00:52]} 31... Rd1+ {[%clk 0:00:31.1]} 32.
Rxd1 {[%clk 0:00:50.9]} 32... Rxd1+ {[%clk 0:00:32]} 33. Bf1 {[%clk 0:00:50.9]}
33... Ra1 {[%clk 0:00:29.4]} 34. a6 {[%clk 0:00:49.8]} 34... Be4 {[%clk
0:00:24.9]} 35. f3 {[%clk 0:00:48.5]} 35... Ra4 {[%clk 0:00:24.1]} 36. Nd3
{[%clk 0:00:41.5]} 36... Bc6 {[%clk 0:00:21.5]} 37. Ne5 {[%clk 0:00:33.7]} 37...
Be8 {[%clk 0:00:19.3]} 38. Bc4 {[%clk 0:00:24.1]} 38... Kf8 {[%clk 0:00:18.7]}
39. b3 {[%clk 0:00:24]} 39... Ra1+ {[%clk 0:00:18.6]} 40. Kf2 {[%clk 0:00:23.6]}
40... Ke7 {[%clk 0:00:19]} 41. Nd3 {[%clk 0:00:23.3]} 41... f6 {[%clk
0:00:18.6]} 42. b4 {[%clk 0:00:22.3]} 42... Kd6 {[%clk 0:00:18.6]} 43. b5 {[%clk
0:00:22]} 43... Bd7 {[%clk 0:00:18.3]} 44. e4 {[%clk 0:00:21.7]} 44... Be6
{[%clk 0:00:17.9]} 45. Bxe6 {[%clk 0:00:20.5]} 45... Kxe6 {[%clk 0:00:18.8]} 46.
b6 {[%clk 0:00:20.9]} 46... Kd6 {[%clk 0:00:16.2]} 47. b7 {[%clk 0:00:20.5]}
47... Rb1 {[%clk 0:00:16.3]} 48. a7 {[%clk 0:00:19.4]} 1-0

[Event "*** Titled Tuesday Blitz"]
[Site "Chess.com"]
[Date "2021.04.06"]
[Round "5"]
[White "Vugar_Manafov"]
[Black "Bodnar_Mykola"]
[Result "0-1"]
[WhiteElo "2680"]
[BlackElo "2511"]
[TimeControl "180+1"]
[EndTime "10:57:53 PDT"]
[Termination "Bodnar_Mykola won by resignation"]

1. Nf3 {[%clk 0:02:55.8]} 1... Nf6 {[%clk 0:02:59.8]} 2. g3 {[%clk 0:02:53.5]}
2... g6 {[%clk 0:02:59.9]} 3. Bg2 {[%clk 0:02:52.2]} 3... Bg7 {[%clk 0:03:00]}
4. O-O {[%clk 0:02:52]} 4... O-O {[%clk 0:03:00.2]} 5. d3 {[%clk 0:02:52.9]}
5... d5 {[%clk 0:02:58.6]} 6. Nc3 {[%clk 0:02:53.8]} 6... c5 {[%clk 0:02:57.5]}
7. e4 {[%clk 0:02:54.5]} 7... Nc6 {[%clk 0:02:54.5]} 8. Bg5 {[%clk 0:02:53.1]}
8... d4 {[%clk 0:02:49.6]} 9. Ne2 {[%clk 0:02:52.5]} 9... h6 {[%clk 0:02:49.7]}
10. Bd2 {[%clk 0:02:52.3]} 10... e5 {[%clk 0:02:48.8]} 11. Ne1 {[%clk
0:02:52.2]} 11... Ne8 {[%clk 0:02:21.3]} 12. f4 {[%clk 0:02:51.6]} 12... exf4
{[%clk 0:02:22.2]} 13. gxf4 {[%clk 0:02:51.2]} 13... f5 {[%clk 0:02:22.6]} 14.
e5 {[%clk 0:02:49.7]} 14... Nc7 {[%clk 0:02:21.1]} 15. c4 {[%clk 0:02:44.3]}
15... dxc3 {[%clk 0:02:19.9]} 16. bxc3 {[%clk 0:02:43.9]} 16... Be6 {[%clk
0:02:18.7]} 17. Rb1 {[%clk 0:02:43]} 17... Rb8 {[%clk 0:02:17.4]} 18. Be3 {[%clk
0:02:35.4]} 18... Qe7 {[%clk 0:01:49.2]} 19. Qa4 {[%clk 0:02:23.5]} 19... Bd5
{[%clk 0:01:45.7]} 20. Nf3 {[%clk 0:02:01.5]} 20... Ne6 {[%clk 0:01:41.1]} 21.
c4 {[%clk 0:01:57.2]} 21... Bxf3 {[%clk 0:01:38.3]} 22. Bxf3 {[%clk 0:01:58.1]}
22... g5 {[%clk 0:01:33.1]} 23. Bd5 {[%clk 0:01:51.8]} 23... Kh8 {[%clk
0:01:31.5]} 24. Bxc6 {[%clk 0:01:21.5]} 24... bxc6 {[%clk 0:01:30.4]} 25. Qxc6
{[%clk 0:01:22.3]} 25... Rxb1 {[%clk 0:01:28.7]} 26. Rxb1 {[%clk 0:01:23.2]}
26... gxf4 {[%clk 0:01:29.1]} 27. Nxf4 {[%clk 0:01:21]} 27... Qg5+ {[%clk
0:01:22]} 28. Ng2 {[%clk 0:01:12.2]} 28... f4 {[%clk 0:01:19.3]} 29. Qxe6 {[%clk
0:00:38.6]} 29... fxe3 {[%clk 0:01:08.8]} 30. Re1 {[%clk 0:00:38.8]} 30... Rf2
{[%clk 0:01:01.9]} 31. Qc8+ {[%clk 0:00:33.7]} 31... Kh7 {[%clk 0:01:01.2]} 32.
Qb7 {[%clk 0:00:31.7]} 32... Qxe5 {[%clk 0:00:45]} 33. Qd5 {[%clk 0:00:11.1]}
33... Qxd5 {[%clk 0:00:44.9]} 34. cxd5 {[%clk 0:00:12]} 34... Bd4 {[%clk
0:00:44.2]} 35. Rf1 {[%clk 0:00:05.9]} 35... Rd2 {[%clk 0:00:36.7]} 36. Kh1
{[%clk 0:00:03.7]} 36... Rxd3 {[%clk 0:00:32.1]} 37. d6 {[%clk 0:00:03.6]} 37...
Bc3 {[%clk 0:00:23.3]} 38. d7 {[%clk 0:00:02.6]} 38... e2 {[%clk 0:00:22.4]} 39.
Rg1 {[%clk 0:00:01.7]} 39... Rxd7 {[%clk 0:00:21.8]} 40. Ne1 {[%clk 0:00:02.2]}
40... Bxe1 {[%clk 0:00:21.8]} 41. Rxe1 {[%clk 0:00:03.1]} 41... Rd1 {[%clk
0:00:22.4]} 0-1